fUSD/lending_fUSD_20240403
["ID","MTS","AMOUNT","RATE_DAILY","PERIOD"]
[321420162,1712181970714,151.040406,0.000235,3]
[321420163,1712181970935,-150.0,0.0002,2]
[321420164,1712181971242,151.040406,0.000235,3]
[321420165,1712181971508,-150.0,0.0002,2]
[321420166,1712181971931,151.040406,0.000235,3]
[321420167,1712181972205,-150.0,0.0002,2]
[321420168,1712181972877,151.040406,0.000235,3]
[321420169,1712181973307,-150.0,0.0002,2]
[321420170,1712181973599,151.040406,0.000235,3]
[321420171,1712181973827,-150.0,0.0002,2]
[321420172,1712181974265,-150.0,0.0002,2]
[321420173,1712181974338,151.040406,0.000235,3]
[321420174,1712181974657,-150.0,0.0002,2]
[321420175,1712181975063,151.040406,0.000235,3]
[321420176,1712181975298,-150.0,0.0002,2]
[321420177,1712181975673,151.040406,0.000235,3]
[321420178,1712181976064,-150.0,0.0002,2]
[321420179,1712181976343,151.040406,0.000235,3]
[321420180,1712181977149,-150.0,0.0002,2]
[321420181,1712181977260,151.040406,0.000235,3]
[321420182,1712181977589,151.040406,0.000235,3]
[321420183,1712181977682,-150.0,0.0002,2]
[321420184,1712181978184,-150.0,0.0002,2]
[321420185,1712181978273,151.040406,0.000235,3]
[321420186,1712181978880,151.040406,0.000235,3]
[321420187,1712181979477,151.040406,0.000235,3]
[321420188,1712181980121,151.040406,0.000235,3]
[321420189,1712181980947,-3389.98863207,0.00019999,2]
[321420190,1712181980972,-75170.01136793,0.0002,2]
[321420191,1712181981049,151.040406,0.000235,3]
[321420192,1712181981480,151.040406,0.000235,3]
[321420193,1712181981848,150.0,0.0001575,2]
[321420194,1712181981871,150.0,0.0001575,2]
[321420195,1712181981894,150.0,0.0001575,2]
[321420196,1712181981916,150.0,0.0001575,2]
[321420197,1712181981935,150.0,0.0001575,2]
[321420198,1712181981955,150.0,0.0001575,2]
[321420199,1712181981975,150.0,0.0001575,2]
[321420200,1712181981994,150.0,0.0001575,2]
[321420201,1712181982014,137.60725893,0.0001575,2]
[321420202,1712181982191,151.040406,0.000235,3]
[321420203,1712181982882,151.040406,0.000235,3]
[321420204,1712181983578,151.040406,0.000235,3]
[321420205,1712181984321,151.040406,0.000235,3]
[321420206,1712181984614,-150.0,0.0002,2]
[321420207,1712181984895,151.040406,0.000235,3]
[321420208,1712181985517,151.040406,0.000235,3]
[321420209,1712181986500,151.040406,0.000235,3]
[321420210,1712181986877,151.040406,0.000235,3]
[321420211,1712181987868,151.040406,0.000235,3]
[321420212,1712181988237,151.040406,0.000235,3]
[321420213,1712181988850,151.040406,0.000235,3]
[321420214,1712181989484,151.040406,0.000235,3]
[321420215,1712181990084,151.040406,0.000235,3]
[321420216,1712181990759,151.040406,0.000235,3]
[321420217,1712181991566,151.040406,0.000235,3]
[321420218,1712181992651,151.040406,0.000235,3]
[321420219,1712181993306,151.040406,0.000235,3]
[321420220,1712181993888,151.040406,0.000235,3]
[321420221,1712181996210,151.040406,0.000235,3]
[321420222,1712181996408,151.040406,0.000235,3]
[321420223,1712181996506,151.040406,0.000235,3]
[321420224,1712181996563,151.040406,0.000235,3]
[321420225,1712181996851,151.040406,0.000235,3]
[321420226,1712181997472,151.040406,0.000235,3]
[321420227,1712181998588,151.040406,0.000235,3]
[321420228,1712181998745,151.040406,0.000235,3]
[321420229,1712181999306,151.040406,0.000235,3]
[321420230,1712181999789,151.040406,0.000235,3]
[321420231,1712181999917,151.040406,0.000235,3]
[321420232,1712182000483,151.040406,0.000235,3]
[321420233,1712182001094,151.040406,0.000235,3]
[321420234,1712182001638,151.040406,0.000235,3]
[321420235,1712182002173,151.040406,0.000235,3]
[321420236,1712182002761,151.040406,0.000235,3]
[321420237,1712182003258,151.040406,0.000235,3]
[321420238,1712182003862,151.040406,0.000235,3]
[321420239,1712182004451,151.040406,0.000235,3]
[321420240,1712182005000,151.040406,0.000235,3]
[321420241,1712182005595,151.040406,0.000235,3]
[321420242,1712182005777,600.0,0.0001575,2]
[321420243,1712182006139,151.040406,0.000235,3]
[321420244,1712182007203,151.040406,0.000235,3]
[321420245,1712182007395,151.040406,0.000235,3]
[321420246,1712182007703,169.97983922,5e-05,2]
[321420247,1712182007884,151.040406,0.000235,3]
[321420248,1712182008965,151.040406,0.000235,3]
[321420249,1712182009448,151.040406,0.000235,3]
[321420250,1712182009769,151.040406,0.000235,3]
[321420251,1712182010208,151.040406,0.000235,3]
[321420252,1712182010773,151.040406,0.000235,3]
[321420253,1712182011353,151.040406,0.000235,3]
[321420254,1712182011893,151.040406,0.000235,3]
[321420255,1712182012542,151.040406,0.000235,3]
[321420256,1712182013133,151.040406,0.000235,3]
[321420257,1712182013673,151.040406,0.000235,3]
[321420258,1712182014240,151.040406,0.000235,3]
[321420259,1712182014777,151.040406,0.000235,3]
[321420260,1712182015492,151.040406,0.000235,3]
[321420261,1712182015916,151.040406,0.000235,3]
[321420262,1712182016471,151.040406,0.000235,3]
[321420263,1712182017057,151.040406,0.000235,3]
[321420264,1712182017626,151.040406,0.000235,3]
[321420265,1712182018137,151.040406,0.000235,3]
[321420266,1712182018686,151.040406,0.000235,3]
[321420267,1712182019812,151.040406,0.000235,3]
[321420268,1712182020023,151.040406,0.000235,3]
[321420269,1712182020414,151.040406,0.000235,3]
[321420270,1712182020976,151.040406,0.000235,3]
[321420271,1712182021532,151.040406,0.000235,3]
[321420272,1712182022075,151.040406,0.000235,3]
[321420273,1712182022604,151.040406,0.000235,3]
[321420274,1712182023162,151.040406,0.000235,3]
[321420275,1712182023830,151.040406,0.000235,3]
[321420276,1712182024569,151.040406,0.000235,3]
[321420277,1712182024840,151.040406,0.000235,3]
[321420278,1712182050874,151.040406,0.000235,3]
[321420279,1712182051728,151.040406,0.000235,3]
[321420280,1712182052126,151.040406,0.000235,3]
[321420281,1712182052892,151.040406,0.000235,3]
[321420282,1712182053425,151.040406,0.000235,3]
[321420283,1712182053868,151.040406,0.000235,3]
[321420284,1712182054421,151.040406,0.000235,3]
[321420285,1712182056366,151.040406,0.000235,3]
[321420286,1712182056484,151.040406,0.000235,3]
[321420287,1712182056516,151.040406,0.000235,3]
[321420288,1712182059797,151.040406,0.000235,3]
[321420289,1712182060383,151.040406,0.000235,3]
[321420290,1712182061035,151.040406,0.000235,3]
[321420291,1712182062324,151.040406,0.000235,3]
[321420292,1712182064263,151.040406,0.000235,3]
[321420293,1712182076247,151.040406,0.000235,3]
[321420294,1712182077209,151.040406,0.000235,3]
[321420295,1712182077870,145.35937343,0.000235,3]
[321420296,1712182098558,151.040407,0.00023,3]
[321420297,1712182100667,151.040407,0.00023,3]
[321420298,1712182101592,151.040407,0.00023,3]
[321420299,1712182102122,151.040407,0.00023,3]
[321420300,1712182102589,151.040407,0.00023,3]
[321420301,1712182103201,151.040407,0.00023,3]
[321420302,1712182103658,151.040407,0.00023,3]
[321420303,1712182104581,151.040407,0.00023,3]
[321420304,1712182104740,151.040407,0.00023,3]
[321420305,1712182105190,151.040407,0.00023,3]
[321420306,1712182105778,151.040407,0.00023,3]
[321420307,1712182106331,151.040407,0.00023,3]
[321420308,1712182106876,151.040407,0.00023,3]
[321420309,1712182107434,151.040407,0.00023,3]
[321420310,1712182108065,151.040407,0.00023,3]
[321420311,1712182108620,151.040407,0.00023,3]
[321420312,1712182109198,151.040407,0.00023,3]
[321420313,1712182109960,151.040407,0.00023,3]
[321420314,1712182130360,151.040407,0.00023,3]
[321420315,1712182131253,151.040407,0.00023,3]
[321420316,1712182131906,151.040407,0.00023,3]
[321420317,1712182132535,151.040407,0.00023,3]
[321420318,1712182133148,151.040407,0.00023,3]
[321420319,1712182133742,151.040407,0.00023,3]
[321420320,1712182134368,151.040407,0.00023,3]
[321420321,1712182135027,151.040407,0.00023,3]
[321420322,1712182135775,151.040407,0.00023,3]
[321420323,1712182152084,-1181.8,0.00019735,2]
[321420324,1712182152104,-1375.9264,0.00019816,2]
[321420325,1712182154111,-22524.0736,0.00019816,2]
[321420326,1712182154130,-188.93,0.00019975,2]
[321420327,1712182154150,-500.0,0.00019993,2]
[321420328,1712182154169,-703.92171334,0.00020049,2]
[321420329,1712182154188,-155.0,0.00020049,2]
[321420330,1712182154207,-500.0,0.0002005,2]
[321420331,1712182154226,-150.0,0.0002005,2]
[321420332,1712182154246,-8875.28926657,0.00020051,2]
[321420333,1712182154266,-3247.63,0.00020052,2]
[321420334,1712182154285,-200.0,0.00020059,2]
[321420335,1712182154305,-500.0,0.0002006,2]
[321420336,1712182154327,-165.21,0.00020083,2]
[321420337,1712182154347,-11256.87796538,0.0002022,2]
[321420342,1712182171206,-250.0,0.00020064,2]
[321420343,1712182171229,-23875.87302989,0.0002022,2]
[321420344,1712182171252,-7800.1869399,0.00020221,2]
[321420345,1712182171273,-362.98570714,0.00020224,2]
[321420346,1712182171293,-150.99,0.00020224,2]
[321420347,1712182171315,-9999.99,0.00020224,2]
[321420348,1712182171336,-999.99,0.00020224,2]
[321420349,1712182171358,-395.39,0.00020224,2]
[321420350,1712182171379,-6789.11232307,0.00020224,2]
[321420354,1712182232084,-1000.0,0.00020024,2]
[321420355,1712182232093,-179.08899049,0.0002022,2]
[321420356,1712182232102,-1132.06348294,0.0002022,2]
[321420357,1712182232111,-940.08470368,0.0002022,2]
[321420358,1712182232122,-2181.94204165,0.00020224,2]
[321420359,1712182232362,-322.91174239,0.00020224,2]
[321420360,1712182232420,-314.61048587,0.00020224,2]
[321420379,1712182237997,-1635.85340702,0.00020224,2]
[321420381,1712182238006,-184.47,0.00020225,2]
[321420383,1712182238017,-8553.01,0.000203,2]
[321420385,1712182238026,-9601.84,0.000203,2]
[321420386,1712182238035,-17050.5808299,0.000208,2]
[321420387,1712182238044,-2119.97530303,0.00020885,2]
[321420388,1712182238054,-500.0,0.00020885,2]
[321420389,1712182238063,-161.95497894,0.00020885,2]
[321420390,1712182238072,-114715.22935905,0.00020886,2]
[321420391,1712182238081,-1590.42214159,0.000209,2]
[321420392,1712182238090,-2999.40499093,0.000209,2]
[321420393,1712182238099,-150.99,0.000209,2]
[321420394,1712182238108,-3399.18191831,0.000209,2]
[321420395,1712182238331,-334.34373196,0.000209,2]
[321420396,1712182238342,-21459.26666614,0.000209,2]
[321420397,1712182238351,-184.6466808,0.000209,2]
[321420398,1712182238361,-832.35103152,0.00020975,2]
[321420399,1712182238372,-150.68,0.00020975,2]
[321420400,1712182238382,-150.68,0.00020975,2]
[321420401,1712182238391,-150.68,0.00020975,2]
[321420402,1712182238402,-150.68,0.00020975,2]
[321420403,1712182238411,-150.68,0.00020976,2]
[321420404,1712182238422,-326.02950132,0.00020983,2]
[321420405,1712182238431,-425.10051793,0.00020983,2]
[321420406,1712182238440,-166.5989,0.00020983,2]
[321420407,1712182238449,-8875.28926657,0.00020983,2]
[321420408,1712182238460,-259.73214105,0.00020983,2]
[321420409,1712182238469,-24146.32933402,0.00020983,2]
[321420410,1712182238478,-636.88310909,0.00020984,2]
[321420411,1712182238488,-3275.29,0.00020984,2]
[321420412,1712182238497,-1766.13700703,0.00020985,2]
[321420413,1712182238507,-3071.96048349,0.00020985,2]
[321420414,1712182238517,-630661.32075901,0.00020985,2]
[321420416,1712182238526,-499.99,0.00020985,2]
[321420417,1712182238535,-195054.2599977,0.00020986,2]
[321420418,1712182238544,-832.35103152,0.0002099,2]
[321420419,1712182238553,-150.68,0.0002099,2]
[321420420,1712182238562,-150.68,0.0002099,2]
[321420421,1712182238571,-150.68,0.0002099,2]
[321420422,1712182238581,-832.35103152,0.00020991,2]
[321420423,1712182238591,-300.0,0.00021,2]
[321420424,1712182238601,-33486.53849575,0.00021,2]
[321420425,1712182238611,-175011.33489958,0.00021,2]
[321420426,1712182238620,-24598.80821803,0.00021,2]
[321420427,1712182238630,-171.15,0.00021,2]
[321420428,1712182238640,-1093.02372831,0.00021,2]
[321420429,1712182238649,-1670900.27977468,0.00021,2]
[321420430,1712182238658,-499.99,0.00021,2]
[321420431,1712182238670,-1306.57105411,0.00021,2]
[321420432,1712182238682,-6067.93107002,0.00021,2]
[321420433,1712182238693,-72971.955,0.00021001,2]
[321420434,1712182238702,-963.4,0.00021002,2]
[321420435,1712182238711,-155.6778293,0.00021008,2]
[321420436,1712182238721,-2009.05416545,0.00021008,2]
[321420437,1712182238731,-200.71401412,0.00021008,2]
[321420438,1712182238742,-984.41700217,0.00021008,2]
[321420439,1712182238751,-224.23271556,0.00021008,2]
[321420440,1712182238761,-626.12550836,0.00021008,2]
[321420441,1712182238771,-767.69251942,0.00021008,2]
[321420442,1712182238782,-2628.49068567,0.00021008,2]
[321420443,1712182238791,-155.74142669,0.00021008,2]
[321420444,1712182238802,-155.0,0.00021008,2]
[321420445,1712182238814,-681.42368122,0.00021008,2]
[321420446,1712182238823,-157.55729644,0.00021008,2]
[321420447,1712182238833,-221.77474572,0.00021008,2]
[321420448,1712182238844,-3410.89890042,0.00021008,2]
[321420449,1712182238855,-157.99812555,0.00021008,2]
[321420450,1712182238865,-210.64540314,0.00021008,2]
[321420451,1712182238876,-155.0,0.0002101,2]
[321420452,1712182238887,-302.43180403,0.0002101,2]
[321420453,1712182238896,-10208.97,0.0002101,2]
[321420454,1712182238906,-150.99,0.0002101,2]
[321420455,1712182238914,-200.0,0.00021013,2]
[321420456,1712182238923,-200.0,0.00021013,2]
[321420457,1712182238932,-200.0,0.00021013,2]
[321420458,1712182238941,-200.0,0.00021013,2]
[321420459,1712182238951,-200.0,0.00021013,2]
[321420460,1712182238959,-162.0,0.00021013,2]
[321420461,1712182238969,-1318.47599902,0.00021014,2]
[321420462,1712182238979,-17050.58082988,0.00021033,2]
[321420463,1712182238988,-165.9,0.0002105,2]
[321420464,1712182238996,-963.4,0.00021058,2]
[321420465,1712182239006,-1479.325353,0.00021062,2]
[321420466,1712182239015,-3003.65,0.00021096,2]
[321420467,1712182239024,-114715.22935897,0.0002111,2]
[321420468,1712182239033,-963.4,0.00021114,2]
[321420469,1712182239043,-2119.975303,0.00021149,2]
[321420470,1712182239052,-963.4,0.0002117,2]
[321420471,1712182239061,-557.40862608,0.00021187,2]
[321420472,1712182239071,-963.4,0.00021227,2]
[321420473,1712182239080,-2904.58739541,0.00021241,2]
[321420474,1712182239089,-17050.58082988,0.00021266,2]
[321420475,1712182239098,-963.4,0.00021283,2]
[321420476,1712182239107,-114715.22935897,0.00021333,2]
[321420477,1712182239117,-2243.85644708,0.00021335,2]
[321420478,1712182239126,-305.70681045,0.00021338,2]
[321420479,1712182239135,-188.17578519,0.00021338,2]
[321420480,1712182239144,-155.24730464,0.00021338,2]
[321420481,1712182239153,-324.93838707,0.00021338,2]
[321420482,1712182239162,-156.3246791,0.00021338,2]
[321420483,1712182239172,-200.3132518,0.00021338,2]
[321420484,1712182239183,-963.4,0.00021339,2]
[321420485,1712182239192,-2714.38,0.00021342,2]
[321420486,1712182239202,-156.91316168,0.0002135,2]
[321420487,1712182239211,-168.35676438,0.0002135,2]
[321420488,1712182239221,-289.811526,0.00021351,2]
[321420489,1712182239231,-726.046626,0.00021352,2]
[321420490,1712182239241,-1417.8151875,0.00021352,2]
[321420491,1712182239252,-289.46916728,0.00021352,2]
[321420492,1712182239261,-340.05015366,0.00021352,2]
[321420493,1712182239271,-242.11762455,0.00021352,2]
[321420494,1712182239281,-8778.41644858,0.00021352,2]
[321420495,1712182239293,-201.06710488,0.00021352,2]
[321420496,1712182239303,-319.45919904,0.00021352,2]
[321420497,1712182239313,-255.90540427,0.00021352,2]
[321420498,1712182239322,-265.61007387,0.00021352,2]
[321420499,1712182239332,-324.44293823,0.00021353,2]
[321420500,1712182239341,-291.42535996,0.00021353,2]
[321420501,1712182239350,-400.0,0.00021353,2]
[321420502,1712182239360,-177.62322885,0.00021353,2]
[321420503,1712182239369,-268.14558605,0.00021353,2]
[321420504,1712182239380,-217.82236192,0.00021353,2]
[321420505,1712182239390,-254.32924,0.00021353,2]
[321420506,1712182239399,-315.31701143,0.00021353,2]
[321420507,1712182239409,-158.50119617,0.00021353,2]
[321420508,1712182239419,-200.0,0.00021353,2]
[321420509,1712182239429,-225.67508911,0.00021353,2]
[321420510,1712182239439,-838.86302315,0.00021353,2]
[321420511,1712182239448,-181.48325779,0.00021354,2]
[321420512,1712182239457,-307.62864947,0.00021354,2]
[321420513,1712182239467,-281.3283664,0.00021354,2]
[321420514,1712182239477,-204.4825801,0.00021354,2]
[321420515,1712182239486,-957.72181913,0.00021354,2]
[321420516,1712182239496,-2444.54358487,0.00021354,2]
[321420517,1712182239505,-496.13398232,0.00021354,2]
[321420518,1712182239515,-3131.90289604,0.00021354,2]
[321420519,1712182239524,-172.9502794,0.00021354,2]
[321420520,1712182239534,-170.38526782,0.00021354,2]
[321420521,1712182239544,-241.98106313,0.00021354,2]
[321420522,1712182239554,-522.43860254,0.00021354,2]
[321420523,1712182239565,-173.70109239,0.00021354,2]
[321420524,1712182239574,-249.70391947,0.00021354,2]
[321420525,1712182239587,-9070.09387178,0.00021354,2]
[321420526,1712182239596,-308.40454924,0.00021354,2]
[321420527,1712182239606,-520.46656187,0.00021354,2]
[321420528,1712182239615,-301.03175398,0.00021354,2]
[321420529,1712182239624,-1232.8237849,0.00021354,2]
[321420530,1712182239635,-222.05171972,0.00021354,2]
[321420531,1712182239644,-3818.91498731,0.00021354,2]
[321420532,1712182239653,-561.02358165,0.00021354,2]
[321420533,1712182239663,-242.26626606,0.00021354,2]
[321420534,1712182239673,-395.12686516,0.00021354,2]
[321420535,1712182239683,-299.36538246,0.00021354,2]
[321420536,1712182239692,-370.41315387,0.00021354,2]
[321420537,1712182239703,-215.8646766,0.00021354,2]
[321420538,1712182239713,-195.03761926,0.00021354,2]
[321420539,1712182239723,-166.59674174,0.00021354,2]
[321420540,1712182239733,-201.40246095,0.00021355,2]
[321420541,1712182239743,-162.5270178,0.00021355,2]
[321420542,1712182239752,-1479.325353,0.00021359,2]
[321420543,1712182239762,-250.31075792,0.0002136,2]
[321420544,1712182239771,-155.42030701,0.0002136,2]
[321420545,1712182239781,-963.4,0.00021395,2]
[321420546,1712182239790,-2373.70186996,0.000214,2]
[321420547,1712182239799,-2119.975303,0.00021413,2]
[321420548,1712182239809,-183.63,0.00021417,2]
[321420549,1712182239818,-963.4,0.00021451,2]
[321420550,1712182239826,-557.40862608,0.00021473,2]
[321420551,1712182239836,-2904.5873954,0.00021478,2]
[321420553,1712182239845,-17050.58082988,0.000215,2]
[321420555,1712182239854,-963.4,0.00021507,2]
[321420556,1712182239862,-114715.22935897,0.00021557,2]
[321420558,1712182239871,-396.45024351,0.00021576,2]
[321420560,1712182239881,-155.16191153,0.00021576,2]
[321420562,1712182239890,-456.82,0.00021582,2]
[321420564,1712182239899,-1479.325353,0.00021598,2]
[321420566,1712182239907,-16566.319,0.00021616,2]
[321420568,1712182239916,-2119.975303,0.00021676,2]
[321420570,1712182239925,-300.0,0.00021679,2]
[321420572,1712182239934,-2904.5873954,0.00021715,2]
[321420574,1712182239943,-151.11863771,0.00021731,2]
[321420576,1712182239952,-17050.58082988,0.00021733,2]
[321420578,1712182239963,-557.40862608,0.00021758,2]
[321420580,1712182239975,-114715.22935897,0.00021781,2]
[321420582,1712182239984,-25795.5950703,0.00021784,2]
[321420584,1712182239994,-1259.88321,0.0002179,2]
[321420587,1712182240005,-1259.88321,0.0002179,2]
[321420589,1712182240015,-1259.88321,0.0002179,2]
[321420591,1712182240026,-1259.88321,0.0002179,2]
[321420593,1712182240036,-1259.88321,0.0002179,2]
[321420595,1712182240046,-1259.88321,0.0002179,2]
[321420597,1712182240056,-151.11863748,0.00021858,2]
[321420599,1712182240067,-1590.42214159,0.000219,2]
[321420601,1712182240078,-2999.40499091,0.000219,2]
[321420603,1712182240088,-3399.18191831,0.000219,2]
[321420606,1712182240099,-334.34373196,0.000219,2]
[321420608,1712182240109,-21459.26666612,0.000219,2]
[321420610,1712182240120,-5000.0,0.000219,2]
[321420612,1712182240131,-250.0,0.00021918,2]
[321420614,1712182240141,-10000.0,0.00021918,2]
[321420616,1712182240150,-201.10317061,0.00021918,2]
[321420618,1712182240160,-2119.975303,0.0002194,2]
[321420620,1712182240170,-2904.5873954,0.00021952,2]
[321420622,1712182240180,-17050.58082988,0.00021966,2]
[321420624,1712182240190,-151.11863748,0.00021985,2]
[321420626,1712182240199,-13593.24005819,0.00022,2]
[321420628,1712182240208,-756.0316743,0.00022,2]
[321420630,1712182240217,-782.49966246,0.00022,2]
[321420632,1712182240226,-188.13123206,0.00022,2]
[321420634,1712182240236,-114715.22935897,0.00022004,2]
[321420636,1712182240246,-557.40862608,0.00022043,2]
[321420638,1712182240255,-210.0,0.00022055,2]
[321420640,1712182240264,-151.11863748,0.00022111,2]
[321420642,1712182240275,-219.11,0.00022171,2]
[321420644,1712182240284,-1479.325353,0.0002218,2]
[321420646,1712182240294,-2904.5873954,0.00022188,2]
[321420648,1712182240305,-17050.58082988,0.00022199,2]
[321420650,1712182240314,-534.0,0.00022205,2]
[321420652,1712182240323,-114715.22935897,0.00022228,2]
[321420654,1712182240333,-151.11863748,0.00022238,2]
[321420656,1712182240342,-557.40862608,0.00022328,2]
[321420658,1712182240352,-500.0,0.00022355,2]
[321420660,1712182240363,-151.11863748,0.00022365,2]
[321420662,1712182240372,-1479.325356,0.00022422,2]
[321420664,1712182240382,-2904.5873954,0.00022425,2]
[321420665,1712182240391,-17050.58082988,0.00022433,2]
[321420666,1712182240400,-114715.22935897,0.00022452,2]
[321420667,1712182240410,-160.403897,0.00022466,2]
[321420668,1712182240419,-151.11863748,0.00022492,2]
[321420669,1712182240429,-1000.0,0.000225,2]
[321420671,1712182240438,-1000.0,0.00022527,2]
[321420673,1712182240448,-183.63,0.00022544,2]
[321420674,1712182240457,-1000.0,0.000226,2]
[321420676,1712182240467,-1000.0,0.000226,2]
[321420678,1712182240476,-557.40862608,0.00022614,2]
[321420680,1712182240486,-151.11863748,0.00022618,2]
[321420682,1712182240495,-647.74709714,0.0002263,2]
[321420684,1712182240505,-7942.5267352,0.00022632,2]
[321420686,1712182240514,-2904.5873954,0.00022662,2]
[321420688,1712182240523,-17050.58082988,0.00022666,2]
[321420690,1712182240533,-168.44,0.00022674,2]
[321420692,1712182240542,-114715.22935897,0.00022675,2]
[321420694,1712182240552,-14192.61085636,0.0002268,2]
[321420697,1712182240562,-22289.83706144,0.0002268,2]
[321420698,1712182240571,-306.00754188,0.0002268,2]
[321420700,1712182240580,-306.00754188,0.00022735,2]
[321420702,1712182240591,-1000.0,0.0002274,2]
[321420704,1712182240601,-151.11863748,0.00022745,2]
[321420706,1712182240610,-439.49519024,0.00022778,2]
[321420708,1712182240620,-350.76102204,0.00022778,2]
[321420710,1712182240632,-9648.2485,0.00022778,2]
[321420712,1712182240640,-27132.3243,0.0002278,2]
[321420714,1712182240649,-5829.7767,0.0002278,2]
[321420716,1712182240659,-39899.8447,0.0002278,2]
[321420718,1712182240670,-771.8477,0.0002278,2]
[321420720,1712182240679,-100000.0,0.0002278,2]
[321420722,1712182240689,-27233.9857,0.0002278,2]
[321420724,1712182240698,-1000.0,0.0002278,2]
[321420726,1712182240707,-500.0,0.0002278,2]
[321420728,1712182240715,-4190.1622,0.0002278,2]
[321420730,1712182240725,-306.00754188,0.0002279,2]
[321420732,1712182240734,-1583.99591406,0.00022837,2]
[321420734,1712182240745,-306.00754188,0.00022844,2]
[321420736,1712182240755,-410.01,0.00022849,2]
[321420738,1712182240763,-1000.0,0.0002285,2]
[321420740,1712182240773,-1583.99591406,0.00022857,2]
[321420742,1712182240782,-1000.0,0.0002286,2]
[321420744,1712182240791,-151.11863748,0.00022872,2]
[321420746,1712182240801,-1583.99591406,0.00022877,2]
[321420748,1712182240810,-155.0,0.00022878,2]
[321420750,1712182240819,-212.75355633,0.00022878,2]
[321420752,1712182240828,-494.87475982,0.00022878,2]
[321420754,1712182240838,-155.43908341,0.00022878,2]
[321420756,1712182240848,-155.68955653,0.00022878,2]
[321420758,1712182240857,-161.05977453,0.00022878,2]
[321420760,1712182240867,-155.90186844,0.00022878,2]
[321420762,1712182240877,-210.10867402,0.00022878,2]
[321420764,1712182240890,-199.956602,0.00022878,2]
[321420766,1712182240899,-191.38068228,0.00022878,2]
[321420768,1712182240908,-155.46808944,0.00022878,2]
[321420770,1712182240917,-15955.12015285,0.00022878,2]
[321420772,1712182240927,-197.22177465,0.00022878,2]
[321420774,1712182240937,-155.79908313,0.00022878,2]
[321420775,1712182240946,-245.87028215,0.00022878,2]
[321420777,1712182240956,-155.52918045,0.00022878,2]
[321420779,1712182240965,-177.936063,0.00022878,2]
[321420781,1712182240974,-155.46840897,0.00022878,2]
[321420795,1712182241150,-212.8531606,0.00022878,2]
[321420797,1712182241160,-170.66821396,0.00022878,2]
[321420799,1712182241169,-287.28620943,0.00022878,2]
[321420801,1712182241178,-282.83715739,0.00022878,2]
[321420802,1712182241187,-156.05515436,0.00022878,2]
[321420804,1712182241197,-260.00719217,0.00022878,2]
[321420806,1712182241206,-175.31276833,0.00022878,2]
[321420808,1712182241218,-155.60832782,0.00022878,2]
[321420810,1712182241228,-156.80757158,0.00022878,2]
[321420812,1712182241238,-245.83198184,0.00022878,2]
[321420813,1712182241249,-157.15123997,0.00022878,2]
[321420815,1712182241259,-284.23022734,0.00022878,2]
[321420817,1712182241268,-203.35168603,0.00022878,2]
[321420819,1712182241279,-232.4975465,0.00022878,2]
[321420820,1712182241288,-188.7540932,0.00022878,2]
[321420822,1712182241298,-157.23724697,0.00022878,2]
[321420824,1712182241307,-155.40295107,0.00022878,2]
[321420826,1712182241316,-246.12592559,0.00022878,2]
[321420827,1712182241325,-155.0,0.00022878,2]
[321420829,1712182241335,-155.0,0.00022878,2]
[321420831,1712182241345,-175.68312412,0.00022878,2]